bitfinex/quotes_SOLUSD_20230116
["timestamp","ask_amount","ask_price","bid_price","bid_amount"]
[1673881727398,21.09253,22.771,22.738,73.49845368]
[1673881727612,24.27360327,22.77,22.73,73.05817218]
[1673881727819,41.09253,22.769,22.73,74.02963861]
[1673881728130,20.0,22.767,22.732,73.58094853]
[1673881728323,5.15919898,22.765,22.734,73.03561594]
[1673881728533,129.1,22.763,22.736,73.04374193]
[1673881728765,5.15305604,22.761,22.709,73.54904215]
[1673881728956,41.09253,22.76,22.731,73.80136078]
[1673881729166,24.09253,22.759,22.733,73.56113922]
[1673881729393,9.35577636,22.758,22.735,73.70328045]
[1673881729596,20.0,22.757,22.737,73.21055599]
[1673881729804,92.16108543,22.757,22.731,73.80136078]
[1673881730030,32.99,22.756,22.732,0.97138096]
[1673881730346,20.0,22.755,22.733,73.56113922]
[1673881730527,20.0,22.755,22.735,73.70328045]
[1673881730864,32.99,22.754,22.731,73.80136078]
[1673881731077,20.0,22.755,22.733,73.56113922]
[1673881731277,20.0,22.755,22.735,73.70328045]
[1673881731478,32.98,22.758,22.735,73.70328045]
[1673881731809,20.0,22.788,22.737,73.21055599]
[1673881731810,32.97,22.764,22.737,73.21055599]
[1673881732145,32.97,22.766,22.739,73.66016075]
[1673881732336,32.97,22.769,22.739,73.66016075]
[1673881732650,32.96,22.774,22.743,73.6027849]
[1673881732843,32.96,22.774,22.742,20.0]
[1673881732844,32.96,22.774,22.745,73.80609185]
[1673881733048,32.96,22.774,22.748,20.0]
[1673881733266,32.95,22.779,22.749,37.0]
[1673881733477,20.0,22.784,22.75,20.0]
[1673881733694,20.0,22.784,22.751,37.0]
[1673881733902,32.95,22.781,22.752,20.0]
[1673881734121,32.95,22.783,22.753,20.0]
[1673881734323,32.95,22.781,22.754,17.0]
[1673881734534,32.95,22.781,22.753,20.0]
[1673881734732,32.95,22.779,22.749,20.0]
[1673881734940,31.96,22.777,22.737,73.21055599]
[1673881735161,31.96,22.777,22.74,73.83148012]
[1673881735493,31.96,22.777,22.742,73.98500759]
[1673881735494,20.0,22.776,22.742,73.98500759]
[1673881735806,17.0,22.775,22.742,73.98500759]
[1673881736010,32.95,22.779,22.742,73.98500759]
[1673881736203,20.0,22.784,22.745,93.80609185]
[1673881736412,20.0,22.784,22.745,97.91797185]
[1673881736640,20.0,22.784,22.745,119.37993539]
[1673881736837,32.95,22.781,22.748,20.0]
[1673881737042,32.95,22.781,22.749,37.0]
[1673881737264,20.0,22.784,22.749,41.11115]
[1673881737474,20.0,22.784,22.75,20.0]
[1673881737694,20.0,22.784,22.751,37.0]
[1673881738103,20.0,22.784,22.749,4.11115]
[1673881738314,7.78397072,22.78,22.731,73.80136078]
[1673881738522,217.55355479,22.781,22.731,74.77278447]
[1673881738523,136.39685611,22.778,22.731,74.77278447]
[1673881738737,128.74533043,22.779,22.735,73.70328045]
[1673881738946,128.74533043,22.779,22.734,20.0]
[1673881738947,62.90906125,22.777,22.737,73.21055599]
[1673881739161,20.0,22.776,22.739,73.66016075]
[1673881739356,17.0,22.775,22.731,73.80136078]
[1673881739563,20.0,22.774,22.733,73.56113922]
[1673881739797,17.0,22.773,22.735,73.70328045]
[1673881740012,20.0,22.772,22.737,73.21055599]
[1673881740208,17.0,22.771,22.738,19.97112462]
[1673881740405,20.0,22.77,22.739,73.66016075]
[1673881740621,17.0,22.769,22.733,73.56113922]
[1673881740850,4.09253,22.768,22.735,73.70328045]
[1673881741057,52.97,22.768,22.737,73.21055599]
[1673881741257,17.0,22.767,22.739,73.54162616]
[1673881741456,20.0,22.766,22.732,20.0]
[1673881741673,17.0,22.765,22.735,73.45312368]
[1673881741894,32.97,22.766,22.737,73.2495277]
[1673881742104,32.96,22.771,22.739,73.54162616]
[1673881742632,32.95,22.781,22.739,73.54162616]
[1673881742842,32.95,22.781,22.741,73.78555882]
[1673881742843,111.295,22.776,22.741,73.78555882]
[1673881743033,111.295,22.776,22.743,73.72780678]
[1673881743248,111.295,22.776,22.745,73.81528589]
[1673881743458,111.295,22.776,22.74,73.67742672]
[1673881743459,20.0,22.774,22.74,73.67742672]
[1673881743675,6.58383818,22.773,22.74,73.67742672]
[1673881744010,5.97973021,22.771,22.741,22.84432342]
[1673881744320,20.0,22.77,22.742,73.06455021]
[1673881744522,4.09253,22.769,22.742,73.06455021]
[1673881744734,20.0,22.768,22.742,73.06455021]
[1673881745052,4.09253,22.767,22.742,73.06455021]
[1673881745795,4.09253,22.767,22.744,73.3600414]
[1673881745987,4.09253,22.767,22.743,20.0]
[1673881745988,20.0,22.77,22.746,73.83778537]
[1673881746198,20.0,22.77,22.744,73.3600414]
[1673881746407,52.97,22.77,22.746,73.83778537]
[1673881746618,52.47,22.77,22.744,73.3600414]
[1673881746829,52.47,22.77,22.746,73.83778537]
[1673881747052,19.5,22.77,22.746,73.83778537]
[1673881747265,20.0,22.772,22.746,73.83778537]
[1673881747454,20.0,22.772,22.748,73.25499596]
[1673881747663,20.0,22.772,22.738,73.89505831]
[1673881747874,32.96,22.771,22.74,73.67742672]
[1673881748099,32.96,22.771,22.742,73.06455021]
[1673881748295,17.7986248,22.77,22.743,0.97091111]
[1673881748504,15.59744294,22.77,22.734,73.18048578]
[1673881748715,15.59744294,22.77,22.733,22.84432342]
[1673881748716,15.59744294,22.77,22.736,73.713643]
[1673881749245,15.59744294,22.77,22.738,73.89505831]
[1673881749457,39.27851636,22.77,22.74,73.67742672]
[1673881749663,32.97,22.769,22.742,73.06455021]
[1673881749876,32.97,22.769,22.744,73.3600414]
[1673881750088,20.0,22.768,22.746,73.83778537]
[1673881750305,20.0,22.768,22.741,42.84432342]
[1673881750306,17.0,22.767,22.742,73.06455021]
[1673881750530,17.0,22.767,22.744,73.3600414]
[1673881750722,17.0,22.767,22.746,73.83778537]
[1673881751875,20.0,22.768,22.746,73.83778537]
[1673881752300,61.84497143,22.768,22.746,73.83778537]
[1673881753049,20.0,22.768,22.746,73.83778537]
[1673881753261,19.78009,22.768,22.746,73.83778537]
[1673881753659,17.0,22.767,22.746,73.83778537]
[1673881754090,17.0,22.767,22.735,73.45312368]
[1673881754304,20.0,22.765,22.737,73.2495277]
[1673881754520,17.0,22.764,22.739,73.54162616]
[1673881754718,17.0,22.764,22.741,73.08657752]
[1673881754922,17.0,22.764,22.743,73.29130461]
[1673881755135,17.0,22.764,22.745,73.09367628]
[1673881755482,20.0,22.765,22.745,73.09367628]
[1673881755660,19.78009,22.768,22.745,73.09367628]
[1673881755865,19.78009,22.768,22.741,73.08657752]
[1673881756077,32.97,22.767,22.743,73.29130461]
[1673881756307,32.97,22.767,22.745,73.09367628]
[1673881756308,20.0,22.766,22.745,73.09367628]
[1673881756705,20.0,22.766,22.742,73.55702054]
[1673881756920,20.0,22.764,22.744,73.1643232]
[1673881757126,17.0,22.763,22.746,73.68336782]
[1673881757347,20.0,22.766,22.744,73.1643232]
[1673881757575,20.0,22.766,22.745,0.97082573]
[1673881757765,20.0,22.766,22.742,73.55702054]
[1673881758090,20.0,22.766,22.744,73.1643232]
[1673881758301,20.0,22.766,22.746,73.68336782]
[1673881758729,49.97,22.765,22.746,73.68336782]
[1673881758914,20.0,22.764,22.746,73.68336782]
[1673881759130,17.0,22.763,22.746,73.68336782]
[1673881759338,20.0,22.762,22.737,73.80500461]
[1673881759543,20.0,22.762,22.738,0.97112462]
[1673881759756,49.98,22.761,22.739,73.307334]
[1673881759969,20.0,22.76,22.74,0.97103921]
[1673881760173,20.0,22.76,22.741,73.08657752]
[1673881760414,17.0,22.759,22.743,73.29130461]
[1673881760609,17.0,22.759,22.745,73.09367628]
[1673881760814,17.0,22.759,22.737,73.80500461]
[1673881761045,17.0,22.759,22.738,0.97111527]
[1673881761251,17.0,22.759,22.739,73.307334]
[1673881761460,17.0,22.759,22.741,73.08657752]
[1673881761656,17.0,22.759,22.736,22.84432342]
[1673881761657,20.0,22.764,22.743,73.29130461]
[1673881761991,20.0,22.775,22.724,118.466]
[1673881761992,52.96,22.772,22.745,73.09367628]
[1673881762171,20.0,22.772,22.733,73.64039886]
[1673881762382,32.96,22.771,22.735,73.90219195]
[1673881762615,32.96,22.771,22.739,73.307334]
[1673881762817,32.96,22.771,22.741,73.08657752]
[1673881763023,32.96,22.771,22.743,73.29130461]
[1673881763241,32.95,22.779,22.745,73.09367628]
[1673881763459,32.95,22.781,22.747,73.92810842]
[1673881763769,32.95,22.783,22.749,73.43563993]
[1673881763961,32.95,22.783,22.751,73.52454559]
[1673881764171,32.95,22.783,22.753,73.65636432]
[1673881764384,52.95,22.784,22.754,20.0]
[1673881764725,32.95,22.781,22.754,20.0]
[1673881764903,32.95,22.781,22.755,17.0]
[1673881765124,32.95,22.781,22.754,20.0]
[1673881765864,52.95,22.784,22.755,17.0]
[1673881766084,20.0,22.784,22.756,20.0]
[1673881766711,20.0,22.784,22.755,20.0]
[1673881766926,20.0,22.784,22.756,17.0]
[1673881767340,20.0,22.784,22.757,20.0]
[1673881767541,20.0,22.784,22.758,17.0]
[1673881767754,20.0,22.784,22.759,20.0]
[1673881768270,20.0,22.784,22.757,20.0]
[1673881768477,20.0,22.784,22.755,20.0]
[1673881768912,32.95,22.783,22.748,73.77908672]
[1673881769132,32.95,22.783,22.75,20.0]
[1673881769446,20.0,22.782,22.751,73.52454559]
[1673881769692,20.0,22.782,22.751,77.63533559]
[1673881770057,20.0,22.782,22.752,20.0]
[1673881770267,20.0,22.782,22.754,73.96775382]
[1673881770478,20.0,22.782,22.755,37.0]
[1673881770690,20.0,22.785,22.755,37.0]
[1673881771009,1429.94590094,22.831,22.757,6.49878764]
[1673881771010,32.92,22.798,22.757,6.49878764]
[1673881771226,20.0,22.801,22.759,20.0]
[1673881771445,20.0,22.801,22.76,21.10917]
[1673881771640,20.0,22.801,22.761,161.13269]
[1673881771848,52.92,22.801,22.763,20.0]
[1673881772062,20.0,22.801,22.764,21.10844]
[1673881772289,20.0,22.801,22.765,44.10826]
[1673881772597,20.0,22.801,22.766,21.10808]
[1673881772812,20.0,22.801,22.767,20.0]
[1673881773007,20.0,22.801,22.768,17.0]
[1673881773457,32.92,22.8,22.768,17.0]
[1673881773978,20.0,22.799,22.768,17.0]
[1673881774378,32.92,22.798,22.768,17.0]
[1673881774588,20.0,22.801,22.768,17.0]
[1673881774798,52.92,22.801,22.769,20.0]
[1673881775122,20.0,22.801,22.77,17.0]
[1673881775442,162.3569,22.802,22.77,17.0]
[1673881775443,109.4369,22.802,22.772,20.0]
[1673881775757,109.4369,22.802,22.773,37.0]
[1673881775950,109.4369,22.802,22.773,84.68889621]
[1673881776162,32.91,22.807,22.774,159.53219621]
[1673881776386,32.9,22.813,22.775,37.0]
[1673881776705,32.9,22.813,22.775,43.295]
[1673881776897,20.0,22.812,22.775,37.0]
[1673881777109,20.0,22.812,22.776,5.45]
[1673881777330,32.91,22.811,22.774,114.3493]
[1673881777543,54.37196354,22.811,22.774,114.3493]
[1673881777745,41.46196354,22.81,22.774,114.3493]
[1673881777958,20.0,22.81,22.774,114.3493]
[1673881778273,20.0,22.808,22.774,114.3493]
[1673881778804,20.0,22.808,22.775,40.0]
[1673881779228,20.0,22.808,22.776,21.10628]
[1673881779438,20.0,22.808,22.777,20.0]
[1673881779652,32.91,22.807,22.775,20.0]
[1673881780076,20.0,22.806,22.775,20.0]
[1673881780480,20.0,22.804,22.775,20.0]
[1673881780684,17.0,22.803,22.774,114.3493]
[1673881780899,49.92,22.803,22.775,17.0]
[1673881781115,17.0,22.803,22.775,17.0]
[1673881781320,20.0,22.802,22.774,114.3493]
[1673881781536,17.0,22.801,22.774,114.3493]
[1673881781743,20.0,22.8,22.774,114.3493]
[1673881781958,17.0,22.799,22.774,114.3493]
[1673881782268,20.0,22.798,22.774,114.3493]
[1673881782684,20.0,22.798,22.775,20.0]
[1673881782898,32.93,22.797,22.775,20.0]
[1673881783128,20.0,22.796,22.764,108.8152]
[1673881783436,20.0,22.796,22.765,20.0]
[1673881783655,32.93,22.795,22.765,20.0]
[1673881783853,20.0,22.793,22.765,20.0]
[1673881784071,17.0,22.792,22.765,20.0]
[1673881784995,17.0,22.792,22.765,41.46196354]
[1673881785443,20.0,22.793,22.766,17.0]
[1673881785645,20.0,22.793,22.767,20.0]
[1673881785852,20.0,22.793,22.765,21.46196354]
[1673881786045,20.0,22.791,22.764,108.8152]
[1673881786675,20.0,22.791,22.765,20.0]
[1673881786890,20.0,22.793,22.765,20.0]
[1673881787098,20.0,22.796,22.766,17.0]
[1673881787310,20.0,22.796,22.767,20.0]
[1673881787515,20.0,22.796,22.768,17.0]
[1673881787728,20.0,22.801,22.769,20.0]
[1673881787937,20.0,22.801,22.771,20.0]
[1673881788150,20.0,22.801,22.772,17.0]
[1673881788364,20.0,22.801,22.772,37.0]
[1673881789959,20.0,22.801,22.772,17.0]
[1673881790146,20.0,22.801,22.77,17.0]
[1673881791010,20.0,22.801,22.771,20.0]
[1673881791212,20.0,22.801,22.772,41.107]
[1673881791411,20.0,22.801,22.774,20.0]
[1673881791620,20.0,22.801,22.775,17.0]
[1673881791847,20.0,22.801,22.776,20.0]
[1673881792050,20.0,22.801,22.777,17.0]
[1673881792270,32.91,22.811,22.779,20.0]
[1673881792470,52.9,22.814,22.78,17.0]
[1673881792679,52.9,22.814,22.781,20.0]
[1673881792892,52.9,22.814,22.782,17.0]
[1673881793116,20.0,22.814,22.782,17.0]
[1673881793313,20.0,22.814,22.783,63.31856287]
[1673881793515,32.89,22.819,22.784,17.0]
[1673881793726,20.0,22.822,22.786,20.0]
[1673881793959,20.0,22.822,22.788,20.0]
[1673881794151,20.0,22.822,22.789,37.0]
[1673881794365,20.0,22.822,22.79,116.6762]
[1673881794577,20.0,22.822,22.791,37.0]
[1673881794777,20.0,22.822,22.792,20.0]
[1673881794987,20.0,22.822,22.793,37.0]
[1673881795198,20.0,22.824,22.793,83.72856287]
[1673881795409,20.0,22.824,22.794,120.52163182]
[1673881795725,20.0,22.824,22.795,148.98306228]
[1673881795936,20.0,22.824,22.795,131.98306228]
[1673881796145,32.89,22.823,22.796,42.17556287]
[1673881796372,52.89,22.824,22.796,42.17556287]
[1673881796579,20.0,22.824,22.796,42.17556287]
[1673881796785,20.0,22.824,22.795,20.0]
[1673881796786,20.0,22.824,22.797,20.0]
[1673881797204,20.0,22.824,22.798,17.0]
[1673881797528,20.0,22.824,22.799,20.0]
[1673881797719,20.0,22.824,22.8,17.0]
[1673881798141,20.0,22.824,22.799,20.0]
[1673881798363,20.0,22.824,22.792,20.0]
[1673881798581,20.0,22.824,22.78,4.867]
[1673881798582,32.89,22.823,22.78,4.867]
[1673881798792,32.89,22.823,22.777,25.52100279]
[1673881798793,17.0,22.822,22.785,5.762]
[1673881799106,20.0,22.821,22.781,69.80749941]
[1673881799298,52.89,22.821,22.782,5.84317099]
[1673881799508,17.0,22.82,22.782,2.512]
[1673881799764,20.0,22.819,22.782,2.512]
[1673881799948,17.0,22.818,22.782,2.512]
[1673881800273,20.0,22.817,22.782,2.512]
[1673881800577,17.0,22.816,22.771,20.0]
[1673881800900,20.0,22.815,22.781,118.3263]
[1673881801098,163.3442,22.815,22.782,4.1052]
[1673881801510,130.4442,22.815,22.782,4.1052]
[1673881801731,130.4442,22.815,22.783,20.0]
[1673881802054,130.4442,22.815,22.783,4.10502]
[1673881802236,163.3442,22.815,22.783,21.463]
[1673881802450,130.4442,22.815,22.783,23.317]
[1673881802661,32.9,22.814,22.783,20.0]
[1673881802889,37.0,22.813,22.782,20.0]
[1673881803081,37.0,22.813,22.781,118.3263]
[1673881803287,32.9,22.812,22.781,118.3263]
[1673881803519,20.0,22.81,22.781,152.83719917]
[1673881803932,49.91,22.809,22.781,152.83719917]
[1673881804136,20.0,22.808,22.781,152.83719917]
[1673881804348,17.0,22.807,22.781,152.83719917]
[1673881804573,49.91,22.807,22.781,152.83719917]
[1673881804766,20.0,22.806,22.781,152.83719917]
[1673881804977,17.0,22.805,22.781,152.83719917]
[1673881805414,17.0,22.805,22.782,20.0]
[1673881805825,17.0,22.805,22.782,54.51089917]
[1673881806865,52.92,22.804,22.782,34.51089917]
[1673881807072,17.0,22.803,22.782,34.51089917]
[1673881807496,32.92,22.802,22.782,34.51089917]
[1673881807728,17.0,22.801,22.782,34.51089917]
[1673881808251,20.0,22.806,22.782,34.51089917]
[1673881808873,20.0,22.806,22.783,20.0]
[1673881809935,20.0,22.806,22.768,20.0]
[1673881810129,20.0,22.806,22.77,5.57908708]
[1673881810338,20.0,22.81,22.772,6.88651085]
[1673881810554,32.9,22.813,22.773,41.10682]
[1673881810767,110.4442,22.815,22.774,24.10664]
[1673881811082,110.4442,22.815,22.776,20.0]
[1673881811281,110.4442,22.815,22.778,6.0600822]
[1673881811494,110.4442,22.815,22.779,24.10574]
[1673881811694,110.4442,22.815,22.781,20.0]
[1673881811908,110.4442,22.815,22.782,9.13528523]
[1673881812134,110.4442,22.815,22.783,41.10502]
[1673881812342,32.89,22.82,22.784,4.10484]
[1673881812558,52.89,22.824,22.785,22.66559005]
[1673881812743,52.89,22.824,22.787,20.0]
[1673881812962,20.0,22.824,22.788,41.10412]
[1673881813294,20.0,22.824,22.789,21.46196354]
[1673881813503,52.89,22.824,22.79,37.0]
[1673881813919,17.0,22.823,22.791,21.46196354]
[1673881814140,17.0,22.823,22.792,20.0]
[1673881814354,20.0,22.821,22.793,17.0]
[1673881814657,20.0,22.819,22.794,20.0]
[1673881814980,20.0,22.819,22.795,17.0]
[1673881815287,20.0,22.819,22.796,20.0]
[1673881815505,20.0,22.819,22.797,17.0]
[1673881815689,20.0,22.819,22.798,20.0]
[1673881816337,20.0,22.819,22.796,20.0]
[1673881816546,20.0,22.819,22.793,20.0]
[1673881816741,20.0,22.819,22.791,21.46196354]
[1673881816742,20.0,22.819,22.792,20.0]
[1673881817601,20.0,22.819,22.794,20.0]
[1673881817788,20.0,22.824,22.795,17.0]
[1673881817996,170.4562,22.828,22.796,20.0]
[1673881818230,170.4562,22.828,22.797,17.0]
[1673881818231,137.5762,22.828,22.797,17.0]
[1673881818632,137.5762,22.828,22.798,41.76]
[1673881818837,137.5762,22.828,22.799,17.0]
[1673881819051,52.88,22.827,22.798,20.0]
[1673881819283,52.88,22.827,22.792,20.0]
[1673881819886,17.0,22.826,22.792,20.0]
[1673881820101,17.0,22.826,22.792,24.1034]
[1673881820311,20.0,22.824,22.792,24.1034]
[1673881820538,20.0,22.824,22.792,46.7034]
[1673881820862,20.0,22.824,22.793,37.0]
[1673881821065,20.0,22.824,22.794,20.0]
[1673881821281,52.88,22.827,22.795,17.0]
[1673881821592,20.0,22.837,22.797,20.0]
[1673881821909,52.86,22.84,22.799,4.39905727]
[1673881822101,52.86,22.84,22.8,21.10196]
[1673881822305,32.86,22.84,22.802,7.45308319]
[1673881822534,32.85,22.852,22.803,21.10142]
[1673881822751,32.85,22.852,22.805,4.94235819]
[1673881822752,20.0,22.851,22.805,4.94235819]
[1673881822965,20.0,22.851,22.808,6.33510436]
[1673881823280,32.85,22.85,22.809,24.10034]
[1673881823479,32.85,22.85,22.809,41.10034]
[1673881823671,20.0,22.849,22.809,45.56230354]
[1673881823889,20.0,22.849,22.81,21.46196354]
[1673881824102,54.31196354,22.848,22.789,114.5418]
[1673881824305,95.31958628,22.848,22.803,21.46196354]
[1673881824522,24.09253,22.847,22.797,4.45353696]
[1673881824731,24.09253,22.847,22.801,113.68341058]
[1673881824944,20.0,22.845,22.802,123.23420177]
[1673881825256,20.0,22.845,22.803,26.67142]
[1673881825467,32.86,22.844,22.804,17.0]
[1673881825676,20.0,22.843,22.803,4.10142]
[1673881825890,61.00762274,22.843,22.801,108.7997]
[1673881826114,32.86,22.842,22.801,108.7997]
[1673881826424,95.32958628,22.842,22.801,108.7997]
[1673881826643,20.0,22.84,22.801,108.7997]
[1673881826838,17.0,22.839,22.801,108.7997]
[1673881827057,20.0,22.838,22.801,108.7997]
[1673881827465,49.87,22.837,22.801,108.7997]
[1673881827679,20.0,22.836,22.801,108.7997]
[1673881827890,17.0,22.835,22.801,108.7997]
[1673881828096,178.97,22.835,22.793,21.46196354]
[1673881828297,129.1,22.833,22.782,111.7839]
[1673881828505,20.0,22.831,22.782,111.7839]
[1673881828718,41.09253,22.83,22.782,111.7839]
[1673881829043,20.0,22.828,22.782,111.7839]
[1673881829259,41.09253,22.827,22.782,111.7839]
[1673881829471,20.0,22.825,22.782,111.7839]
[1673881829683,21.09253,22.824,22.782,111.7839]
[1673881829894,20.0,22.823,22.775,21.46196354]
[1673881830106,37.0,22.822,22.777,111.7839]
[1673881830323,8.27607365,22.821,22.777,111.7839]
[1673881830508,153.32963636,22.819,22.777,111.7839]
[1673881830712,24.09253,22.818,22.777,111.7839]
[1673881831069,21.09253,22.817,22.777,111.7839]
[1673881831237,153.19253,22.816,22.777,111.7839]
[1673881831447,21.09253,22.815,22.777,111.7839]
[1673881831662,24.09253,22.814,22.777,111.7839]
[1673881831981,20.0,22.812,22.769,21.46196354]
[1673881832190,17.0,22.811,22.769,21.46196354]
[1673881832502,20.0,22.808,22.764,113.8765]
[1673881832711,20.0,22.808,22.746,5.85889511]
[1673881832712,20.0,22.807,22.76,21.46196354]
[1673881832923,129.1,22.805,22.76,25.57113354]
[1673881833133,17.0,22.804,22.76,4.10917]
[1673881833358,17.0,22.804,22.76,21.46196354]
[1673881833359,9.49746719,22.803,22.76,21.46196354]
[1673881833577,4.57520714,22.801,22.752,21.46196354]
[1673881833763,20.0,22.801,22.747,113.8765]
[1673881833978,87.96824926,22.8,22.747,113.8765]
[1673881834189,20.0,22.799,22.748,25.57329354]
[1673881834399,20.0,22.797,22.749,4.11115]
[1673881834614,17.0,22.796,22.749,25.57311354]
[1673881834833,49.93,22.796,22.75,21.46196354]
[1673881835050,54.02253,22.796,22.75,21.46196354]
[1673881835245,4.25019878,22.794,22.75,21.46196354]
[1673881835453,20.0,22.792,22.73,40.38664417]
[1673881835662,6.22554891,22.791,22.744,21.46196354]
[1673881835988,6.22554891,22.791,22.731,113.87021]
[1673881835989,6.77853642,22.789,22.731,113.87021]
[1673881836202,4.06619537,22.786,22.732,25.57619354]
[1673881836524,20.0,22.785,22.733,25.57601354]
[1673881836718,20.0,22.784,22.734,4.11387]
[1673881836935,21.09253,22.783,22.734,21.46196354]
[1673881837241,46.36297274,22.782,22.735,21.46196354]
[1673881837453,24.09253,22.781,22.735,21.46196354]
[1673881837676,4.09253,22.78,22.735,21.46196354]
[1673881838309,24.09253,22.78,22.736,34.20222954]
[1673881838518,24.09253,22.78,22.735,64.88702417]
[1673881838519,116.68240628,22.779,22.735,21.46196354]
[1673881838716,153.19253,22.778,22.731,109.7558]
[1673881839042,4.6511754,22.777,22.732,4.11423]
[1673881839256,5.62400846,22.775,22.732,4.11423]
[1673881839443,6.29376811,22.772,22.732,4.11423]
[1673881839791,20.0,22.773,22.73,17.613668]
[1673881839792,20.0,22.769,22.73,17.613668]
[1673881839990,4.69703796,22.768,22.705,73.96946013]
[1673881840305,5.9706739,22.765,22.718,30.81257152]
[1673881840501,17.0,22.767,22.718,30.81257152]
[1673881840502,7.64300502,22.762,22.719,4.11658]
[1673881840717,7.64300502,22.762,22.703,152.37471678]
[1673881840718,20.0,22.761,22.703,130.91275324]
[1673881840919,133.309316,22.76,22.719,30.81121528]
[1673881841132,149.1,22.758,22.704,4.1193]
[1673881841352,20.0,22.754,22.707,30.82749812]
[1673881841559,129.1,22.752,22.707,30.82749812]
[1673881841769,4.88273958,22.749,22.707,30.82749812]
[1673881841977,7.08606463,22.747,22.707,30.82749812]
[1673881842199,4.06732283,22.744,22.707,30.82749812]
[1673881842387,24.09253,22.746,22.707,30.82749812]
[1673881842388,20.0,22.742,22.707,30.82749812]
[1673881842601,24.09253,22.741,22.707,30.82749812]
[1673881842820,24.09253,22.74,22.707,30.82749812]
[1673881843023,4.09253,22.739,22.707,30.82749812]
[1673881843444,4.09253,22.739,22.708,20.0]
[1673881843857,4.09253,22.739,22.712,30.82071151]
[1673881844495,4.09253,22.739,22.712,67.65945622]
[1673881844840,4.09253,22.739,22.712,30.82071151]
[1673881845263,4.09253,22.739,22.713,36.83874471]
[1673881845449,20.0,22.744,22.703,148.54204724]
[1673881845659,21.46196354,22.739,22.714,30.81799771]
[1673881846093,20.0,22.738,22.714,30.81799771]
[1673881846420,38.46196354,22.737,22.714,30.81799771]
[1673881846632,20.0,22.736,22.714,30.81799771]
[1673881846840,17.0,22.735,22.714,30.81799771]
[1673881847244,20.0,22.734,22.714,30.81799771]
[1673881847456,17.0,22.733,22.703,143.61674623]
[1673881847656,17.0,22.733,22.646,45.23548763]
[1673881847657,30.81799771,22.711,22.663,113.7126]
[1673881847875,17.0,22.71,22.663,113.7126]
[1673881848098,91.55967348,22.71,22.678,17.650591]
[1673881848406,20.0,22.708,22.678,17.650591]
[1673881848729,5.31702099,22.706,22.678,17.650591]
[1673881848937,21.09253,22.705,22.678,17.650591]
[1673881849140,11.00386187,22.704,22.678,6.650591]
[1673881849349,24.09253,22.703,22.678,6.650591]
[1673881849552,31.76374272,22.702,22.678,6.650591]
[1673881849767,20.0,22.7,22.678,6.650591]
[1673881849972,4.09253,22.699,22.678,6.650591]
[1673881850209,85.79022257,22.699,22.678,6.650591]
[1673881850395,98.18706595,22.698,22.678,6.650591]
[1673881850721,53.13162489,22.697,22.678,6.650591]
[1673881850939,4.09253,22.696,22.678,6.650591]
[1673881851987,61.72164374,22.705,22.678,6.650591]